bitfinex/quotes_SOLUSD_20220116
["timestamp","ask_amount","ask_price","bid_price","bid_amount"]
[1642364926776,24.44196897,148.2,148.12,33.0035]
[1642364926976,24.44196897,148.2,148.13,67.56]
[1642364927177,1.13366897,148.2,148.14,22.3842854]
[1642364927475,1.13366897,148.2,148.14,22.6342854]
[1642364928074,1.13366897,148.2,148.14,28.6342854]
[1642364928274,1.13366897,148.2,148.14,22.6342854]
[1642364928675,1.13366897,148.2,148.14,28.6342854]
[1642364930676,1.13366897,148.2,148.15,24.8209]
[1642364930877,1.13366897,148.2,148.15,25.0709]
[1642364936487,1.13366897,148.2,148.15,24.8209]
[1642364937891,1.13366897,148.2,148.15,25.0709]
[1642364938390,1.13366897,148.2,148.15,24.8209]
[1642364939091,1.13366897,148.2,148.14,89.9442854]
[1642364939290,1.13366897,148.2,148.14,95.9442854]
[1642364939694,1.13366897,148.2,148.14,105.9342854]
[1642364940293,10.1228,148.24,148.15,23.836]
[1642364940492,3.74590835,148.25,148.16,67.56]
[1642364940694,3.74590835,148.25,148.17,24.9263]
[1642364940894,3.74590835,148.25,148.17,25.1763]
[1642364941393,3.74590835,148.25,148.17,45.0362]
[1642364941612,3.74590835,148.25,148.19,5.11022054]
[1642364941798,3.74590835,148.25,148.19,29.38712054]
[1642364941997,3.74590835,148.28,148.2,67.56]
[1642364942398,3.74590835,148.28,148.2,67.81]
[1642364943219,10.1186,148.3,148.2,67.81]
[1642364944020,10.1186,148.3,148.21,23.0203]
[1642364944420,10.1186,148.3,148.21,23.2703]
[1642364944821,10.1186,148.3,148.21,29.1463]
[1642364945026,13.86330835,148.32,148.21,29.1463]
[1642364945522,13.86330835,148.32,148.21,35.1463]
[1642364945922,23.7481,148.31,148.21,35.1463]
[1642364946524,23.7481,148.31,148.21,45.2635]
[1642364947727,23.7481,148.31,148.22,67.06]
[1642364947927,23.7481,148.31,148.22,73.31]
[1642364958743,33.866,148.31,148.22,73.31]
[1642364959238,33.866,148.31,148.24,22.3842854]
[1642364959239,23.7481,148.31,148.24,22.3842854]
[1642364959438,23.7481,148.31,148.24,28.3482854]
[1642364959837,23.7481,148.31,148.24,34.3482854]
[1642364961240,1.26658034,148.34,148.25,67.06]
[1642364961441,1.26658034,148.34,148.26,89.9492]
[1642364961840,1.26658034,148.34,148.26,96.1992]
[1642364962043,1.26658034,148.34,148.26,105.9392]
[1642364962543,37.37120835,148.37,148.26,122.024]
[1642364964944,33.6253,148.37,148.26,122.024]
[1642364968545,33.6253,148.37,148.26,116.053]
[1642364968945,33.6253,148.37,148.26,48.743]
[1642364969145,33.6253,148.37,148.26,22.8892]
[1642364969349,35.32607588,148.37,148.23,9.74]
[1642364969548,9.74,148.36,148.2,9.74]
[1642364969745,10.1204,148.32,148.2,9.74]
[1642364970045,25.8504,148.32,148.16,9.74]
[1642364970250,25.8504,148.32,148.16,34.0242]
[1642364970445,25.8504,148.32,148.17,27.36207979]
[1642364970850,25.8504,148.32,148.18,9.74]
[1642364971045,19.8604,148.32,148.18,9.74]
[1642364971245,19.8604,148.32,148.18,15.99]
[1642364971447,23.60630835,148.32,148.19,24.3158]
[1642364971647,23.60630835,148.32,148.2,67.56]
[1642364971853,23.60630835,148.32,148.2,67.81]
[1642364972047,23.60630835,148.32,148.2,77.928]
[1642364972248,23.60630835,148.32,148.2,83.928]
[1642364972450,19.8604,148.32,148.2,83.928]
[1642364973049,19.8604,148.32,148.21,23.0825]
[1642364973351,19.8604,148.32,148.22,67.56]
[1642364973550,19.8604,148.32,148.23,24.3701]
[1642364973949,19.8604,148.32,148.23,24.6201]
[1642364974551,19.8604,148.32,148.23,0.25]
[1642364974950,19.8604,148.32,148.21,0.25]
[1642364975354,19.8604,148.32,148.2,6.0]
[1642364975552,19.8604,148.32,148.18,34.6353]
[1642364975553,21.56117588,148.32,148.18,34.6353]
[1642364975751,19.8604,148.32,148.19,6.0]
[1642364975955,19.8604,148.32,148.18,125.0843]
[1642364976577,19.8604,148.32,148.18,126.29382434]
[1642364976776,19.8604,148.32,148.18,126.54382434]
[1642364976977,23.60630835,148.32,148.18,126.54382434]
[1642364977377,23.60630835,148.32,148.18,142.66322434]
[1642364977779,19.8604,148.32,148.18,142.66322434]
[1642364979279,23.60630835,148.32,148.18,142.66322434]
[1642364980080,23.60630835,148.32,148.18,141.4537]
[1642364980479,23.60630835,148.32,148.18,73.8937]
[1642364982081,23.60630835,148.32,148.19,67.56]
[1642364982482,23.60630835,148.32,148.19,73.81]
[1642364982782,23.60630835,148.32,148.19,6.25]
[1642364983184,23.60630835,148.32,148.2,23.6176]
[1642364983383,23.60630835,148.32,148.2,23.8676]
[1642364989191,23.60630835,148.32,148.2,23.6176]
[1642364989392,23.60630835,148.32,148.18,40.6353]
[1642364989393,31.29630835,148.32,148.18,40.6353]
[1642364989993,3.74590835,148.31,148.18,40.6353]
[1642364990291,37.01557643,148.27,148.18,40.6353]
[1642364990692,43.12957643,148.27,148.18,9.74]
[1642364990894,43.12957643,148.27,148.17,27.36207979]
[1642364991497,10.1227,148.25,148.17,27.36207979]
[1642364991896,10.1227,148.25,148.17,27.61207979]
[1642364994201,10.1227,148.25,148.17,52.20567979]
[1642364997432,10.1227,148.25,148.17,27.61207979]
[1642364998437,77.6827,148.25,148.13,24.7279]
[1642364998633,9.74,148.24,148.13,24.7279]
[1642364998834,10.1265,148.21,148.13,24.7279]
[1642364999038,17.9725,148.21,148.09,9.74]
[1642364999237,17.9725,148.21,148.1,24.3528]
[1642364999537,38.88970673,148.2,148.11,27.11924309]
[1642365000333,38.88970673,148.2,148.11,27.36924309]
[1642365001436,10.1272,148.18,148.11,27.36924309]
[1642365002238,13.48590835,148.24,148.12,67.56]
[1642365002437,13.48590835,148.24,148.12,80.1]
[1642365002639,13.48590835,148.24,148.12,81.30952434]
[1642365002846,9.74,148.24,148.12,81.30952434]
[1642365003036,59.14769958,148.24,148.13,23.5221]
[1642365003537,10.1239,148.22,148.13,23.7721]
[1642365004038,9.74,148.26,148.13,23.7721]
[1642365004238,9.74,148.26,148.13,29.7721]
[1642365004743,45.9451552,148.25,148.13,29.7721]
[1642365005540,10.1226,148.24,148.13,39.8947]
[1642365005939,10.1226,148.24,148.13,107.4547]
[1642365007143,43.12410069,148.23,148.13,39.8947]
[1642365007344,53.24730069,148.23,148.13,39.8947]
[1642365008745,10.1232,148.23,148.13,39.8947]
[1642365009544,0.63924158,148.18,148.13,39.8947]
[1642365009746,0.63924158,148.18,148.13,6.0]
[1642365009946,0.63924158,148.18,148.11,27.11924309]
[1642365010747,0.63924158,148.18,148.12,24.5443]
[1642365011145,0.63924158,148.18,148.12,24.7943]
[1642365014549,10.1239,148.22,148.12,102.4777]
[1642365014748,0.63924158,148.17,148.12,102.4777]
[1642365015547,0.63924158,148.17,148.12,34.9177]
[1642365015948,0.63924158,148.17,148.12,40.9177]
[1642365016248,0.63924158,148.17,148.12,119.42722434]
[1642365016448,0.63924158,148.17,148.12,118.2177]
[1642365017849,0.63924158,148.17,148.12,50.6577]
[1642365018252,0.63924158,148.17,148.12,117.9677]
[1642365018651,0.63924158,148.17,148.12,50.4077]
[1642365019654,0.63924158,148.17,148.12,26.1134]
[1642365019855,1.70077588,148.23,148.11,27.11924309]
[1642365020056,0.63924158,148.14,148.11,27.11924309]
[1642365021057,0.63924158,148.14,148.11,27.36924309]
[1642365022159,6.06439994,148.13,148.11,27.11924309]
[1642365022762,6.06439994,148.13,148.09,24.3987]
[1642365022959,1.70077588,148.12,148.04,9.74]
[1642365023159,1.70077588,148.12,148.01,13.56868677]
[1642365023361,1.70077588,148.12,148.01,3.82868677]
[1642365023660,1.70077588,148.12,148.0,181.157]
[1642365023861,1.70077588,148.12,148.01,19.68374824]
[1642365024360,1.70077588,148.12,148.01,19.93374824]
[1642365024560,34.41124158,148.14,148.02,22.5038]
[1642365024561,10.1319,148.1,148.02,22.5038]
[1642365025467,0.63924158,148.08,148.02,22.5038]
[1642365027167,0.63924158,148.08,148.01,19.68374824]
[1642365027767,10.77254158,148.08,148.01,19.68374824]
[1642365028166,12.47331746,148.08,148.01,19.68374824]
[1642365028367,12.47331746,148.08,147.94,3.82868677]
[1642365028567,9.74,148.07,147.94,3.82868677]
[1642365028765,10.1396,148.04,147.92,27.11238677]
[1642365028967,16.4036,148.04,147.92,33.11238677]
[1642365029391,16.4036,148.04,147.93,24.77279458]
[1642365029791,16.4036,148.04,147.93,30.77279458]
[1642365029991,10.1396,148.04,147.93,31.02279458]
[1642365030192,57.78899808,148.04,147.93,31.02279458]
[1642365030792,0.63924158,147.98,147.93,31.02279458]
[1642365031594,0.63924158,147.98,147.93,30.77279458]
[1642365033696,10.77944158,147.98,147.93,30.77279458]
[1642365034997,10.77944158,147.98,147.93,31.02279458]
[1642365035699,10.1402,147.98,147.93,31.02279458]
[1642365035998,0.63924158,147.96,147.93,31.02279458]
[1642365036198,6.06439994,147.95,147.93,31.02279458]
[1642365036399,6.06439994,147.95,147.87,57.1032]
[1642365036599,6.06439994,147.95,147.87,47.3632]
[1642365037402,49.91907485,147.95,147.88,20.41988633]
[1642365037602,6.06439994,147.95,147.88,20.41988633]
[1642365038006,6.06439994,147.95,147.88,20.66988633]
[1642365038509,16.20669994,147.95,147.88,20.66988633]
[1642365038905,16.20669994,147.95,147.88,26.66988633]
[1642365040206,67.56,147.94,147.88,20.41988633]
[1642365040506,10.1453,147.93,147.81,1.90858811]
[1642365040706,77.7053,147.93,147.82,6.0]
[1642365040912,77.7053,147.93,147.81,7.90858811]
[1642365041111,77.7053,147.93,147.81,1.90858811]
[1642365041308,0.63924158,147.87,147.81,7.90858811]
[1642365041509,0.63924158,147.87,147.82,25.60401906]
[1642365043015,0.63924158,147.87,147.82,25.85401906]
[1642365044813,0.63924158,147.87,147.82,31.85401906]
[1642365046017,0.63924158,147.87,147.82,25.85401906]
[1642365046516,10.1451,147.91,147.82,31.85401906]
[1642365046717,0.63924158,147.84,147.82,31.85401906]
[1642365047722,10.1451,147.91,147.84,0.56036865]
[1642365048147,10.1451,147.91,147.85,1.32087665]
[1642365048348,10.1451,147.91,147.85,1.57087665]
[1642365050048,10.1451,147.91,147.85,1.32087665]
[1642365050250,67.56,147.9,147.83,0.53238174]
[1642365050449,10.1491,147.88,147.86,0.53238174]
[1642365050654,6.06439994,147.87,147.86,0.53238174]
[1642365052051,6.06439994,147.87,147.86,8.174e-05]
[1642365055756,15.80439994,147.87,147.86,8.174e-05]
[1642365060268,83.36439994,147.87,147.86,8.174e-05]
[1642365060468,83.36439994,147.87,147.75,1.90858811]
[1642365060469,67.56,147.85,147.75,1.90858811]
[1642365060668,67.56,147.83,147.75,1.90858811]
[1642365060867,77.3,147.83,147.75,1.90858811]
[1642365061066,9.74,147.83,147.75,1.90858811]
[1642365061270,9.74,147.83,147.74,0.33830159]
[1642365061466,51.0642886,147.83,147.74,0.33830159]
[1642365061674,52.76506448,147.83,147.74,0.33830159]
[1642365061866,118.6242886,147.83,147.74,0.33830159]
[1642365062467,10.1547,147.81,147.74,0.33830159]
[1642365062668,19.8947,147.81,147.74,0.33830159]
[1642365064268,42.42719928,147.8,147.74,0.33830159]
[1642365064468,19.8947,147.81,147.74,0.33830159]
[1642365065483,10.1554,147.79,147.74,0.33830159]
[1642365070479,67.56,147.78,147.74,0.33830159]
[1642365070679,10.1576,147.77,147.74,0.33830159]
[1642365070879,6.06439994,147.76,147.74,0.33830159]
[1642365071281,6.06439994,147.76,147.74,1.59e-06]
[1642365071681,7.76517582,147.76,147.65,1.90858811]
[1642365071880,9.74,147.75,147.63,23.28458811]
[1642365072284,47.12764366,147.74,147.64,18.94315799]
[1642365072580,10.1602,147.71,147.64,18.94315799]
[1642365072780,49.85609181,147.71,147.64,18.94315799]
[1642365072981,49.85609181,147.71,147.64,19.19315799]
[1642365073181,10.1602,147.71,147.64,25.19315799]
[1642365073681,10.1602,147.71,147.64,24.94315799]
[1642365074117,51.50816643,147.71,147.64,24.94315799]
[1642365075216,67.56,147.7,147.64,18.94315799]
[1642365075416,10.1619,147.69,147.64,18.94315799]
[1642365075615,10.1619,147.69,147.61,23.8797]
[1642365076418,19.0069,147.69,147.61,29.8797]
[1642365076622,39.00122038,147.68,147.62,26.33191696]
[1642365076818,10.162,147.67,147.62,32.33191696]
[1642365080621,116.97745572,147.67,147.62,32.33191696]
[1642365080823,116.97745572,147.67,147.53,94.1]
[1642365081022,116.97745572,147.67,147.53,97.92868677]
[1642365081824,116.97745572,147.67,147.54,23.0198808]
[1642365082331,116.97745572,147.67,147.54,29.0198808]
[1642365082524,9.74,147.66,147.54,29.0198808]
[1642365082726,10.1657,147.63,147.55,23.4654]
[1642365082923,10.1657,147.63,147.55,29.4654]
[1642365084327,10.1657,147.63,147.56,21.06084495]
[1642365084728,10.1657,147.63,147.56,27.31084495]
[1642365086331,10.1657,147.63,147.56,27.06084495]
[1642365087132,77.7257,147.63,147.56,27.06084495]
[1642365087535,10.1657,147.63,147.56,27.06084495]
[1642365090935,87.4657,147.63,147.56,27.06084495]
[1642365094345,19.9057,147.63,147.56,27.31084495]
[1642365094645,10.1657,147.63,147.56,32.84984495]
[1642365094943,10.1636,147.65,147.56,32.84984495]
[1642365095143,10.1636,147.65,147.57,24.6853]
[1642365095343,10.1636,147.65,147.57,30.9353]
[1642365095541,10.1636,147.65,147.57,24.9353]
[1642365097445,10.1636,147.65,147.57,30.9353]
[1642365100147,10.1636,147.65,147.57,24.9353]
[1642365100379,10.1636,147.65,147.57,30.9353]
[1642365100546,10.1636,147.65,147.57,24.9353]
[1642365100947,10.1636,147.65,147.56,21.06084495]
[1642365101149,67.56,147.64,147.56,27.06084495]
[1642365101347,10.1668,147.62,147.56,27.06084495]
[1642365103549,10.1645,147.64,147.56,27.06084495]
[1642365104153,10.1645,147.64,147.56,27.31084495]
[1642365104553,43.617,147.7,147.56,27.31084495]
[1642365104751,1.70077588,147.73,147.57,9.74]
[1642365104950,10.89005796,147.74,147.58,0.07]
[1642365105151,10.89005796,147.74,147.58,77.37]
[1642365105354,60.78485307,147.74,147.59,5.86405076]
[1642365105754,60.78485307,147.74,147.59,12.11405076]
[1642365105953,60.78485307,147.74,147.6,47.7484]
[1642365106251,60.78485307,147.74,147.6,125.4675]
[1642365106252,10.1593,147.72,147.6,125.4675]
[1642365106453,10.1593,147.72,147.6,131.7175]
[1642365107358,11.30795796,147.74,147.6,131.7175]
[1642365107560,11.30795796,147.74,147.6,142.66702434]
[1642365111059,55.52877061,147.74,147.6,63.4884]
[1642365111259,10.1607,147.7,147.6,63.4884]
[1642365111662,9.74,147.74,147.61,67.56]
[1642365111857,24.0003,147.8,147.63,67.56]
[1642365112059,27.74620835,147.8,147.64,34.6569]
[1642365112258,27.74620835,147.8,147.65,67.56]
[1642365112459,50.99048551,147.79,147.68,31.21464495]
[1642365112659,50.99048551,147.79,147.69,23.4526]
[1642365112859,9.74,147.81,147.69,97.2626]
[1642365113261,33.8475,147.83,147.69,98.47212434]
[1642365113859,40.89780583,147.82,147.69,98.47212434]
[1642365114460,10.1535,147.81,147.69,30.91212434]
[1642365116087,10.1535,147.81,147.7,67.56]
[1642365116288,10.1535,147.81,147.71,5.86405076]
[1642365116485,10.1535,147.81,147.71,30.64625076]
[1642365116687,10.1535,147.81,147.71,30.89625076]
[1642365121092,33.8475,147.83,147.72,67.56]
[1642365121093,10.1521,147.83,147.72,67.56]
[1642365121290,9.74,147.86,147.73,23.6732]
[1642365121690,9.74,147.86,147.73,29.9232]
[1642365122091,41.82587564,147.85,147.74,21.06084495]
[1642365122292,51.97657564,147.85,147.74,21.06084495]
[1642365122493,51.97657564,147.85,147.74,27.31084495]
[1642365122695,51.97657564,147.85,147.75,23.6859]
[1642365123699,51.97657564,147.85,147.75,23.9359]
[1642365124296,51.97657564,147.85,147.75,23.6859]
[1642365126098,51.97657564,147.85,147.75,23.9359]
[1642365126300,51.97657564,147.85,147.75,23.6859]
[1642365126499,51.97657564,147.85,147.75,23.9359]
[1642365129800,51.97657564,147.85,147.75,29.9359]
[1642365130002,51.97657564,147.85,147.75,23.9359]
[1642365131201,51.97657564,147.85,147.75,29.9359]
[1642365142409,51.97657564,147.85,147.75,29.6859]
[1642365143910,51.97657564,147.85,147.75,29.9359]
[1642365154245,51.97657564,147.85,147.75,97.4959]
[1642365154444,41.82587564,147.85,147.75,97.4959]
[1642365154645,3.74590835,147.86,147.75,108.44542434]
[1642365155647,35.54644358,147.86,147.75,108.44542434]
[1642365156448,45.69634358,147.86,147.75,40.88542434]
[1642365156649,45.69634358,147.86,147.75,39.4259]
[1642365157452,49.44225193,147.86,147.75,39.4259]
[1642365158053,49.44225193,147.86,147.75,39.6759]
[1642365160359,49.44225193,147.86,147.75,39.4259]
[1642365160555,49.44225193,147.86,147.75,6.0]
[1642365160754,9.74,147.85,147.75,6.0]
[1642365160958,10.1544,147.81,147.75,6.0]
[1642365161356,43.59640265,147.8,147.75,6.0]
[1642365161555,43.59640265,147.8,147.73,19.85364844]
[1642365161755,43.59640265,147.8,147.73,26.10364844]
[1642365165660,1.09196537,147.82,147.73,93.66364844]
[1642365165860,1.09196537,147.82,147.74,24.7313]
[1642365166263,1.09196537,147.82,147.74,24.9813]
[1642365166663,42.84611301,147.81,147.74,24.9813]
[1642365167265,1.09196537,147.82,147.74,24.9813]
[1642365167467,1.09196537,147.82,147.74,30.9813]
[1642365167665,37.58790835,147.86,147.74,30.9813]
[1642365167666,3.74590835,147.86,147.74,41.93082434]
[1642365167894,3.74590835,147.86,147.74,70.49376323]
[1642365168296,3.74590835,147.86,147.75,0.26]
[1642365168494,3.74590835,147.86,147.76,9.74]
[1642365168695,45.81814689,147.86,147.77,29.74764727]
[1642365168896,45.81814689,147.86,147.77,36.95717161]
[1642365169096,42.07223854,147.86,147.78,9.74]
[1642365169497,42.07223854,147.86,147.78,15.74]
[1642365170297,52.22223854,147.86,147.78,15.74]
[1642365171400,50.72223854,147.86,147.78,15.99]
[1642365174703,50.72223854,147.86,147.78,15.74]
[1642365175302,50.72223854,147.86,147.78,6.0]
[1642365175502,50.72223854,147.86,147.77,35.74764727]
[1642365175908,50.72223854,147.86,147.77,35.99764727]
[1642365179307,3.74590835,147.89,147.77,35.99764727]
[1642365179308,10.1488,147.88,147.77,103.55764727]
[1642365179605,3.74590835,147.89,147.78,1.20952434]
[1642365179807,3.74590835,147.89,147.79,9.74]
[1642365180008,3.74590835,147.89,147.8,23.4028]
[1642365180206,3.74590835,147.89,147.8,24.61232434]
[1642365180406,3.74590835,147.89,147.81,22.56317278]
[1642365180806,3.74590835,147.91,147.81,28.81317278]
[1642365181009,3.74590835,147.91,147.82,24.8975]
[1642365181407,3.74590835,147.91,147.82,98.7075]
[1642365181806,58.78688224,147.92,147.82,98.7075]
[1642365184111,48.64078224,147.92,147.82,98.7075]
[1642365184312,3.74590835,147.93,147.82,98.7075]
[1642365184512,3.74590835,147.93,147.82,114.8305]
[1642365185511,38.37677336,147.92,147.82,124.9745]
[1642365187814,13.89050835,147.94,147.82,124.9745]
[1642365188015,3.74590835,147.94,147.83,1.21233396]
[1642365188217,3.74590835,147.94,147.87,67.56]
[1642365188416,3.74590835,147.94,147.87,73.81]
[1642365188616,3.74590835,147.94,147.87,81.197]
[1642365188818,3.74590835,147.94,147.88,16.81124727]
[1642365189218,3.74590835,147.94,147.88,23.06124727]
[1642365189415,3.74590835,147.97,147.88,23.06124727]
[1642365189616,3.74590835,147.97,147.89,23.7793]
[1642365189816,3.74590835,147.97,147.89,30.0293]
[1642365190618,53.46783076,147.98,147.89,30.0293]
[1642365191620,49.72192241,147.98,147.89,30.0293]
[1642365192518,1.91893113,147.96,147.89,30.0293]
[1642365193220,36.73555292,147.95,147.89,30.0293]
[1642365193620,1.91893113,147.96,147.89,30.0293]
[1642365194351,1.91893113,147.96,147.89,97.5893]
[1642365200454,1.91893113,147.96,147.89,107.3293]
[1642365201257,1.91893113,147.97,147.89,126.1634]
[1642365201455,1.91893113,147.97,147.89,127.37573396]
[1642365202157,1.91893113,147.97,147.89,127.69659522]
[1642365202558,1.91893113,147.97,147.89,127.37573396]
[1642365203359,1.91893113,147.98,147.89,127.37573396]
[1642365204660,1.91893113,148.01,147.89,127.37573396]
[1642365205861,1.91893113,148.02,147.89,127.37573396]
[1642365206060,1.91893113,148.02,147.89,150.17603396]
[1642365206461,1.91893113,148.02,147.89,271.87603396]
[1642365206661,1.91893113,148.01,147.89,271.87603396]
[1642365208465,1.91893113,148.0,147.89,271.87603396]
[1642365209066,47.32682405,148.0,147.89,271.87603396]
[1642365209566,1.91893113,148.0,147.89,271.87603396]
[1642365209766,1.91893113,148.0,147.91,122.01514535]
[1642365209969,1.91893113,148.0,147.93,10.1339]
[1642365210166,1.91893113,148.0,147.94,34.6988]
[1642365210367,1.91893113,148.0,147.94,40.9488]
[1642365210566,1.91893113,148.0,147.95,21.03910754]
[1642365210970,1.91893113,148.0,147.96,9.74]
[1642365211371,43.57056676,148.03,147.96,15.99]
[1642365211570,43.57056676,148.03,147.96,39.3542]
[1642365211971,1.23057842,148.03,147.96,39.3542]
[1642365212170,3.14950955,148.03,147.96,106.9142]
[1642365213070,1.23057842,148.03,147.96,106.9142]
[1642365213671,43.94085343,148.02,147.96,106.9142]
[1642365214269,43.94085343,148.02,147.96,39.3542]
[1642365214870,43.94085343,148.02,147.96,39.1042]
[1642365215075,43.94085343,148.02,147.96,6.0]
[1642365215271,43.94085343,148.02,147.91,35.09582695]
[1642365215675,1.91893113,148.01,147.91,41.09582695]
[1642365216072,1.91893113,148.01,147.91,35.09582695]
[1642365216873,1.91893113,147.99,147.91,35.09582695]
[1642365217075,48.83425086,147.98,147.91,35.09582695]
[1642365217276,48.83425086,147.98,147.91,9.74]
[1642365217474,48.83425086,147.98,147.91,9.99]
[1642365217877,50.75318199,147.98,147.91,9.99]
[1642365218078,50.75318199,147.98,147.91,9.74]
[1642365218376,59.36518199,147.98,147.87,9.74]
[1642365218575,59.36518199,147.98,147.86,24.60347165]
[1642365219182,1.91893113,147.97,147.86,24.60347165]
[1642365219378,10.1437,147.95,147.86,24.85347165]
[1642365219575,41.97467459,147.94,147.86,24.85347165]
[1642365219975,41.97467459,147.94,147.81,9.74]
[1642365219976,67.56,147.93,147.81,9.74]
[1642365220182,1.70077588,147.93,147.81,9.74]
[1642365220412,9.74,147.92,147.8,1.81703799]
[1642365220613,10.1475,147.9,147.77,46.65233799]
[1642365220914,56.15654228,147.9,147.78,28.28836493]
[1642365221112,56.15654228,147.9,147.79,67.56]
[1642365221312,56.15654228,147.9,147.79,97.0804]
[1642365221513,56.15654228,147.9,147.79,91.3304]
[1642365221913,58.07547341,147.9,147.79,97.3304]
[1642365222112,58.07547341,147.9,147.79,91.3304]
[1642365222315,58.07547341,147.9,147.79,29.7704]
[1642365222514,58.07547341,147.9,147.79,23.7704]
[1642365222719,58.07547341,147.9,147.79,39.5104]
[1642365223818,58.07547341,147.9,147.79,33.5104]
[1642365224018,58.07547341,147.9,147.79,39.5104]
[1642365224219,58.07547341,147.9,147.79,33.5104]
[1642365224419,58.07547341,147.9,147.79,39.5104]
[1642365224619,56.15654228,147.9,147.79,107.0704]
[1642365224819,56.15654228,147.9,147.79,101.0704]
[1642365226220,1.91893113,147.91,147.79,112.4252226]
[1642365226420,1.91893113,147.91,147.79,118.4252226]
[1642365226822,1.91893113,147.92,147.79,118.4252226]
[1642365227221,42.08423052,147.91,147.79,118.4252226]
[1642365230227,10.1454,147.93,147.79,118.4252226]
[1642365230628,1.91893113,147.94,147.79,118.4252226]
[1642365231028,1.91893113,147.94,147.8,23.4752]
[1642365231228,1.91893113,147.94,147.83,10.1434]
[1642365231433,35.76463797,147.93,147.83,10.3934]
[1642365231658,35.76463797,147.93,147.83,0.25]
[1642365232755,35.76463797,147.93,147.82,91.9331]
[1642365233558,45.91003797,147.93,147.82,91.9331]
[1642365236860,45.91003797,147.93,147.82,97.9331]
[1642365237263,45.91003797,147.93,147.82,91.9331]
[1642365237461,45.91003797,147.93,147.82,101.6731]
[1642365238364,45.91003797,147.93,147.82,107.6731]
[1642365238564,45.91003797,147.93,147.82,101.6731]
[1642365239866,45.91003797,147.93,147.82,107.6731]
[1642365241367,10.1454,147.93,147.82,107.6731]
[1642365241565,1.91893113,147.94,147.82,119.0259226]
[1642365242367,42.764133,147.94,147.82,119.0259226]
[1642365242566,40.84520187,147.94,147.82,119.0259226]
[1642365244269,1.91893113,147.96,147.82,119.0259226]
[1642365244769,1.91893113,147.94,147.82,119.0259226]
[1642365245371,50.97443341,147.94,147.82,119.0259226]
[1642365246373,49.05550228,147.94,147.82,119.0259226]
[1642365246873,50.97443341,147.94,147.82,119.0259226]
[1642365248579,1.91893113,147.93,147.82,119.0259226]
[1642365250578,1.91893113,147.93,147.82,51.2159226]
[1642365250879,3.61970701,147.93,147.8,35.43753799]
[1642365251082,3.61970701,147.93,147.8,41.43753799]
[1642365251280,1.91893113,147.93,147.8,41.43753799]
[1642365252079,49.05550228,147.94,147.8,39.6205]
[1642365252080,1.91893113,147.91,147.8,39.6205]
[1642365252280,43.71960201,147.9,147.8,39.6205]
[1642365252679,43.71960201,147.9,147.8,29.4752]
[1642365252879,1.91893113,147.89,147.8,29.4752]
[1642365254380,1.91893113,147.89,147.8,23.7252]
[1642365254982,1.91893113,147.88,147.8,23.7252]
[1642365255282,1.91893113,147.88,147.8,0.25]
[1642365255283,44.13680695,147.87,147.8,0.25]
[1642365255482,44.13680695,147.87,147.79,9.99]
[1642365256283,51.61880695,147.87,147.79,9.74]
[1642365256481,51.61880695,147.87,147.78,28.28836493]
[1642365256686,61.76820695,147.87,147.75,1.81703799]
[1642365257286,1.91893113,147.86,147.73,11.55703799]
[1642365257683,1.91893113,147.86,147.74,22.19624326]
[1642365258485,10.151,147.84,147.74,22.19624326]
[1642365258788,10.151,147.84,147.74,22.44624326]
[1642365258789,38.35003883,147.83,147.74,22.44624326]
[1642365262389,10.151,147.84,147.74,22.44624326]
[1642365262589,10.151,147.84,147.74,90.00624326]
[1642365263391,48.75713348,147.84,147.74,90.00624326]
[1642365263590,1.91893113,147.85,147.74,91.2151475]
[1642365263794,1.91893113,147.85,147.75,24.6209]
[1642365263992,12.06873113,147.86,147.75,24.6209]
[1642365264195,1.91893113,147.86,147.75,35.0196]
[1642365264392,1.91893113,147.86,147.76,67.56]
[1642365264594,1.91893113,147.86,147.77,73.78865245]
[1642365264795,1.91893113,147.86,147.77,83.52865245]
[1642365264995,1.91893113,147.88,147.77,89.77865245]
[1642365265196,1.91893113,147.88,147.78,92.4204]
[1642365265426,1.91893113,147.88,147.79,10.146]
[1642365265826,47.33500668,147.9,147.8,89.75624326]
[1642365266032,47.33500668,147.9,147.8,22.19624326]
[1642365266227,47.33500668,147.9,147.8,22.44624326]